bitfinex/quotes_BTCUSD_20240811
["timestamp","ask_amount","ask_price","bid_price","bid_amount"]
[1723401328764,1.1105086,60266.0,60265.0,0.1475141]
[1723401329222,0.77896836,60266.0,60265.0,0.1475141]
[1723401329442,0.48538269,60266.0,60265.0,0.1475141]
[1723401330073,0.71768569,60266.0,60265.0,0.1475141]
[1723401330509,0.48538269,60266.0,60265.0,0.1475141]
[1723401330956,0.71768569,60266.0,60265.0,0.1475141]
[1723401331180,0.06250404,60266.0,60265.0,0.2636671]
[1723401331634,0.028831,60266.0,60265.0,0.2636671]
[1723401332281,0.014831,60266.0,60265.0,0.2636671]
[1723401332500,0.016831,60266.0,60265.0,0.2636671]
[1723401332702,0.002831,60266.0,60265.0,0.2636671]
[1723401332967,0.000831,60266.0,60265.0,0.4959741]
[1723401333228,0.002831,60266.0,60265.0,0.89209602]
[1723401333439,0.000831,60266.0,60265.0,0.2636671]
[1723401333662,0.002831,60266.0,60265.0,0.2636671]
[1723401333881,0.001831,60266.0,60265.0,0.1475141]
[1723401334326,0.001831,60266.0,60265.0,0.2636671]
[1723401334575,0.000831,60266.0,60265.0,0.2636671]
[1723401335463,0.000831,60266.0,60265.0,0.1475141]
[1723401335669,0.001831,60266.0,60265.0,0.1475141]
[1723401335853,0.002831,60266.0,60265.0,0.2636671]
[1723401336509,0.001831,60266.0,60265.0,0.2636671]
[1723401336709,0.000831,60266.0,60265.0,0.2636671]
[1723401336931,0.000831,60266.0,60265.0,0.1485141]
[1723401338512,0.000831,60266.0,60265.0,0.2646671]
[1723401339733,0.000831,60266.0,60265.0,0.4969741]
[1723401341672,0.000831,60266.0,60265.0,0.2646671]
[1723401342677,0.000831,60266.0,60265.0,0.4969741]
[1723401345104,0.000831,60266.0,60265.0,0.7292811]
[1723401345943,0.000831,60266.0,60265.0,0.8353638]
[1723401346345,0.000831,60266.0,60265.0,0.99917872]
[1723401346552,0.000831,60266.0,60265.0,0.99892553]
[1723401347170,0.000831,60266.0,60265.0,0.89309602]
[1723401348933,0.000831,60266.0,60265.0,1.13552926]
[1723401349432,0.000831,60266.0,60265.0,1.2413908]
[1723401349844,0.000831,60266.0,60265.0,1.13552926]
[1723401350046,0.000831,60266.0,60265.0,1.24167758]
[1723401351562,0.000831,60266.0,60265.0,0.99924434]
[1723401357651,0.000831,60266.0,60265.0,0.99857801]
[1723401360667,0.000831,60266.0,60265.0,1.23088501]
[1723401361074,0.000831,60266.0,60265.0,1.39977042]
[1723401361481,0.000831,60266.0,60265.0,1.42977042]
[1723401361700,0.000831,60266.0,60265.0,1.66207742]
[1723401362110,0.000831,60266.0,60265.0,1.83427696]
[1723401362312,0.000831,60266.0,60265.0,1.58196996]
[1723401362522,0.000831,60266.0,60265.0,1.40977042]
[1723401362727,0.000831,60266.0,60265.0,1.40877042]
[1723401362937,0.000831,60266.0,60265.0,1.58096808]
[1723401363139,0.000831,60266.0,60265.0,1.58296808]
[1723401363555,0.000831,60266.0,60265.0,1.57296808]
[1723401363774,0.000831,60266.0,60265.0,1.06846342]
[1723401363981,0.000831,60266.0,60265.0,0.99957801]
[1723401364188,0.000831,60266.0,60265.0,0.60345609]
[1723401365057,0.000831,60266.0,60265.0,0.83576309]
[1723401370928,0.000831,60266.0,60265.0,0.83729702]
[1723401374051,0.000831,60266.0,60265.0,1.00111194]
[1723401374253,0.000831,60266.0,60265.0,0.89409602]
[1723401374457,0.000831,60266.0,60265.0,1.00123127]
[1723401375026,0.000831,60266.0,60265.0,1.23353827]
[1723401376032,0.000831,60266.0,60265.0,1.51442475]
[1723401376288,0.000831,60266.0,60265.0,1.91893766]
[1723401376584,0.000831,60266.0,60265.0,2.13416168]
[1723401376703,0.000831,60266.0,60265.0,1.86987953]
[1723401376914,0.000831,60266.0,60265.0,1.65463066]
[1723401377527,0.001831,60266.0,60265.0,1.66463066]
[1723401377732,0.001831,60266.0,60265.0,1.49027699]
[1723401377930,0.000831,60266.0,60265.0,1.8947803]
[1723401378231,0.001831,60266.0,60265.0,1.9007803]
[1723401378441,0.002831,60266.0,60265.0,1.9007803]
[1723401378849,0.002831,60266.0,60265.0,1.9007496]
[1723401379229,0.002831,60266.0,60265.0,1.6215881]
[1723401379430,0.002831,60266.0,60265.0,1.90074655]
[1723401379633,0.002831,60266.0,60265.0,1.90074465]
[1723401380063,0.002831,60266.0,60265.0,1.92074465]
[1723401380702,0.002831,60266.0,60265.0,1.92274465]
[1723401380910,0.002831,60266.0,60265.0,1.9724611]
[1723401381110,0.002831,60266.0,60265.0,1.97245518]
[1723401381526,0.002831,60266.0,60265.0,1.97244261]
[1723401381730,0.002831,60266.0,60265.0,1.97244262]
[1723401381942,0.002831,60266.0,60265.0,1.67043174]
[1723401382150,0.002831,60266.0,60265.0,1.57843174]
[1723401382366,0.002831,60266.0,60265.0,1.40624338]
[1723401383800,0.002831,60266.0,60265.0,1.41624338]
[1723401384009,0.002831,60266.0,60265.0,1.58844168]
[1723401384226,0.001831,60266.0,60265.0,1.58844168]
[1723401384433,0.000831,60266.0,60265.0,1.57244168]
[1723401384841,0.000831,60266.0,60265.0,1.81074868]
[1723401384842,0.002831,60266.0,60265.0,1.81074868]
[1723401385262,0.001831,60266.0,60265.0,1.81062403]
[1723401385884,0.001831,60266.0,60265.0,1.82062403]
[1723401386500,0.002831,60266.0,60265.0,1.82062403]
[1723401387495,0.002831,60266.0,60265.0,1.82062371]
[1723401387910,0.002831,60266.0,60265.0,1.87032759]
[1723401388677,0.002831,60266.0,60265.0,1.69812751]
[1723401388879,0.002831,60266.0,60265.0,1.87032035]
[1723401389294,0.002831,60266.0,60265.0,1.89287149]
[1723401390125,0.002831,60266.0,60265.0,1.87087149]
[1723401390342,0.002831,60266.0,60265.0,1.63856449]
[1723401390543,0.002831,60266.0,60265.0,1.57886061]
[1723401390767,0.002831,60266.0,60265.0,1.40666751]
[1723401392240,0.002831,60266.0,60265.0,1.40667175]
[1723401393756,0.002831,60266.0,60265.0,1.34047175]
[1723401393935,0.002831,60266.0,60265.0,1.09119038]
[1723401394380,0.002831,60266.0,60265.0,0.85888338]
[1723401395194,0.002831,60266.0,60265.0,0.69506846]
[1723401395921,0.002831,60266.0,60265.0,0.5876811]
[1723401396129,0.002831,60266.0,60265.0,0.6946359]
[1723401399602,0.002831,60266.0,60265.0,0.5876811]
[1723401399833,0.002831,60266.0,60265.0,0.69458643]
[1723401400299,0.002831,60266.0,60265.0,0.69481132]
[1723401401238,0.002831,60266.0,60265.0,0.69482865]
[1723401403394,0.002831,60266.0,60265.0,0.77466379]
[1723401404135,0.002831,60266.0,60265.0,0.93847871]
[1723401405074,0.002831,60266.0,60265.0,1.17078571]
[1723401406489,0.002831,60266.0,60265.0,0.93847871]
[1723401406999,0.002831,60266.0,60265.0,0.93870498]
[1723401407527,0.002831,60266.0,60265.0,0.69499006]
[1723401408032,0.002831,60266.0,60265.0,0.69474074]
[1723401408283,0.001831,60266.0,60265.0,0.69474074]
[1723401408798,0.001831,60266.0,60265.0,0.68874074]
[1723401409053,0.001831,60266.0,60265.0,0.69374074]
[1723401409561,0.002831,60266.0,60265.0,0.69374074]
[1723401412395,0.002831,60266.0,60265.0,0.69384579]
[1723401413823,0.002831,60266.0,60265.0,0.83424579]
[1723401414070,0.002831,60266.0,60265.0,1.23036771]
[1723401414351,0.002831,60266.0,60265.0,1.23052183]
[1723401415577,0.000831,60269.0,60268.0,0.843032]
[1723401415846,0.000831,60269.0,60268.0,2.09118466]
[1723401416116,0.000831,60269.0,60268.0,2.22406883]
[1723401416364,0.000831,60269.0,60268.0,1.99177383]
[1723401416618,0.000831,60269.0,60268.0,2.0093086]
[1723401416882,0.000831,60269.0,60268.0,1.98446642]
[1723401417137,0.000831,60269.0,60268.0,1.98246642]
[1723401417368,0.001831,60269.0,60268.0,1.99546642]
[1723401417615,0.000831,60269.0,60268.0,1.80826388]
[1723401417855,0.001831,60269.0,60268.0,1.92154004]
[1723401418111,0.002831,60269.0,60268.0,2.05244004]
[1723401418372,0.000831,60269.0,60268.0,2.12882127]
[1723401418629,0.002831,60269.0,60268.0,2.12695567]
[1723401418867,0.002831,60269.0,60268.0,2.05244004]
[1723401419350,0.002831,60269.0,60268.0,2.16193302]
[1723401419586,0.002831,60269.0,60268.0,2.13705844]
[1723401420817,0.002831,60269.0,60268.0,1.78906032]
[1723401421048,0.002831,60269.0,60268.0,2.13705198]
[1723401421522,0.002831,60269.0,60268.0,2.13724946]
[1723401421816,0.002831,60269.0,60268.0,2.06274571]
[1723401422047,0.002831,60269.0,60268.0,2.11240919]
[1723401422319,0.002831,60269.0,60268.0,2.13735551]
[1723401422551,0.002831,60269.0,60268.0,1.96517405]
[1723401422792,0.002831,60269.0,60268.0,2.13734841]
[1723401423461,0.001831,60269.0,60268.0,2.12634841]
[1723401423692,0.002831,60269.0,60268.0,2.13634841]
[1723401423917,0.001831,60269.0,60268.0,2.12635354]
[1723401424174,0.001831,60269.0,60268.0,2.04984979]
[1723401424393,0.001831,60269.0,60268.0,2.39062144]
[1723401424619,0.002831,60269.0,60268.0,2.41548313]
[1723401424835,0.002831,60269.0,60268.0,2.40448313]
[1723401425043,0.000831,60269.0,60268.0,2.39448313]
[1723401425251,0.000831,60269.0,60268.0,2.29514479]
[1723401425468,0.001831,60269.0,60268.0,2.30514479]
[1723401425684,0.001831,60269.0,60268.0,2.40441841]
[1723401425897,0.001831,60269.0,60268.0,2.41395192]
[1723401425898,0.002831,60269.0,60268.0,2.41395192]
[1723401426523,0.002831,60269.0,60268.0,2.41393579]
[1723401426981,0.000831,60270.0,60269.0,1.3096]
[1723401427194,0.000831,60270.0,60269.0,2.16008592]
[1723401427424,0.000831,60282.0,60281.0,0.844857]
[1723401427632,0.000831,60282.0,60281.0,1.8578761]
[1723401427839,0.000831,60282.0,60281.0,2.07962223]
[1723401428293,0.000831,60282.0,60281.0,2.03001146]
[1723401428927,0.000831,60282.0,60281.0,2.05301146]
[1723401429156,0.002831,60282.0,60281.0,1.9008761]
[1723401429455,0.002831,60282.0,60281.0,2.07300964]
[1723401429692,0.002831,60282.0,60281.0,2.88525464]
[1723401429933,0.000831,60297.0,60296.0,0.953054]
[1723401430174,0.000831,60297.0,60296.0,1.32465552]
[1723401430404,0.000831,60297.0,60296.0,1.58684252]
[1723401430669,0.000831,60297.0,60296.0,1.48105592]
[1723401430900,0.000831,60297.0,60296.0,1.65815666]
[1723401431372,0.000831,60297.0,60296.0,1.5872415]
[1723401431629,0.000831,60297.0,60296.0,1.3550545]
[1723401432280,0.000831,60297.0,60296.0,1.3570545]
[1723401432510,0.000831,60297.0,60296.0,1.3690545]
[1723401432970,0.000831,60297.0,60296.0,1.3470545]
[1723401433402,0.000831,60297.0,60296.0,1.3490545]
[1723401433606,0.000831,60297.0,60296.0,1.6012415]
[1723401434024,0.000831,60297.0,60296.0,1.61116799]
[1723401434233,0.000831,60297.0,60296.0,1.50298241]
[1723401434456,0.000831,60297.0,60296.0,1.61164067]
[1723401434665,0.000831,60297.0,60296.0,1.60164067]
[1723401434872,0.000831,60297.0,60296.0,1.61064067]
[1723401435087,0.000831,60297.0,60296.0,1.61364067]
[1723401435950,0.000831,60297.0,60296.0,1.59964067]
[1723401437264,0.000831,60297.0,60296.0,1.61364067]
[1723401437679,0.000831,60297.0,60296.0,1.62764067]
[1723401437889,0.000831,60297.0,60296.0,1.59943706]
[1723401438101,0.000831,60297.0,60296.0,1.59143706]
[1723401438303,0.000831,60297.0,60296.0,1.60543706]
[1723401438929,0.000831,60297.0,60296.0,1.59143706]
[1723401439130,0.000831,60297.0,60296.0,1.57743706]
[1723401439335,0.000831,60297.0,60296.0,1.58143706]
[1723401439544,0.000831,60297.0,60296.0,1.58140608]
[1723401439777,0.000831,60297.0,60296.0,1.28511908]
[1723401440427,0.000831,60297.0,60296.0,1.29911908]
[1723401440632,0.000831,60297.0,60296.0,1.17669541]
[1723401441251,0.000831,60297.0,60296.0,1.19069541]
[1723401441465,0.121931,60297.0,60296.0,0.31783441]
[1723401441668,0.121931,60297.0,60296.0,0.54009492]
[1723401441880,0.121931,60297.0,60296.0,0.30790792]
[1723401442091,0.121931,60297.0,60296.0,0.144093]
[1723401442295,0.121931,60297.0,60296.0,0.116093]
[1723401442709,0.121931,60297.0,60292.0,0.232202]
[1723401442922,0.121931,60297.0,60287.0,0.23222]
[1723401442923,0.0579,60292.0,60287.0,0.23222]
[1723401443127,0.0579,60292.0,60289.0,0.116106]
[1723401443128,0.0632,60291.0,60289.0,0.116106]
[1723401443339,0.0579,60289.0,60275.0,0.232266]
[1723401443552,0.0579,60289.0,60270.0,0.094]
[1723401443553,0.0579,60289.0,60285.0,0.116114]
[1723401443763,0.0579,60289.0,60282.0,0.11612]
[1723401443972,0.0579,60285.0,60281.0,0.116121]
[1723401444389,0.0579,60285.0,60278.0,0.232254]
[1723401444390,0.0579,60285.0,60282.0,0.117033]
[1723401445408,0.0609,60285.0,60283.0,0.116117]
[1723401445607,0.0579,60285.0,60283.0,0.116117]
[1723401446365,0.0579,60285.0,60282.0,0.000913]
[1723401446900,0.0599,60285.0,60282.0,0.122032]
[1723401447119,0.0579,60285.0,60282.0,0.122032]
[1723401447342,0.0579,60285.0,60282.0,0.117032]
[1723401447548,0.0599,60285.0,60282.0,0.117032]
[1723401447751,0.0599,60285.0,60282.0,0.122032]
[1723401448147,0.0599,60285.0,60282.0,0.117032]
[1723401448360,0.0579,60285.0,60282.0,0.117032]
[1723401448570,0.0599,60285.0,60283.0,0.116118]
[1723401448772,0.0579,60285.0,60283.0,0.116118]
[1723401450124,0.0599,60285.0,60283.0,0.116118]
[1723401450323,0.0579,60285.0,60283.0,0.116118]
[1723401450785,0.0599,60285.0,60283.0,0.121118]
[1723401451959,0.0599,60285.0,60284.0,0.116117]
[1723401452807,0.0599,60285.0,60283.0,0.005]
[1723401453015,0.413351,60284.0,60283.0,0.005]
[1723401453221,0.471251,60284.0,60283.0,0.005]
[1723401453425,0.116118,60283.0,60282.0,0.000913]
[1723401453629,0.348355,60283.0,60282.0,0.000913]
[1723401453832,0.406255,60283.0,60282.0,0.000913]
[1723401454561,0.406255,60283.0,60282.0,0.007913]
[1723401454783,0.472255,60283.0,60282.0,0.007913]
[1723401456344,0.240018,60283.0,60282.0,0.007913]
[1723401457797,0.1239,60283.0,60282.0,0.007913]
[1723401463119,0.066,60283.0,60282.0,0.007913]
[1723401464846,0.001,60283.0,60282.0,0.007913]
[1723401465050,0.001,60283.0,60282.0,1.06647092]
[1723401465254,0.001,60283.0,60282.0,1.12927092]
[1723401468111,0.001,60283.0,60282.0,0.89702992]
[1723401469242,0.001,60283.0,60282.0,1.00584211]
[1723401472189,0.001,60283.0,60282.0,1.23808311]
[1723401472941,0.00083,60285.0,60284.0,0.580585]
[1723401473141,0.00083,60285.0,60284.0,0.85321211]
[1723401474355,0.00083,60285.0,60284.0,0.93521211]
[1723401474530,0.00083,60285.0,60284.0,0.93821211]
[1723401474673,0.00083,60285.0,60284.0,1.17044611]
[1723401475993,0.00083,60285.0,60284.0,1.18144611]
[1723401476176,0.00083,60285.0,60284.0,1.07263392]
[1723401476375,0.00083,60285.0,60284.0,1.18153907]
[1723401476553,0.00083,60285.0,60284.0,1.19177242]
[1723401476759,0.00083,60285.0,60284.0,1.08286727]
[1723401476924,0.00083,60285.0,60284.0,1.19177021]
[1723401478683,0.00083,60285.0,60284.0,0.94930286]
[1723401478848,0.00083,60285.0,60284.0,0.12290294]
[1723401479045,0.00083,60285.0,60284.0,0.23901994]
[1723401479252,0.00083,60285.0,60284.0,0.014]
[1723401479456,0.00083,60285.0,60284.0,0.130117]
[1723401480284,0.00083,60285.0,60284.0,0.014]
[1723401480488,0.174845,60285.0,60284.0,0.014]
[1723401480691,0.407075,60285.0,60284.0,0.014]
[1723401481233,0.116118,60283.0,60282.0,0.000913]
[1723401482427,0.470955,60283.0,60282.0,0.000913]
[1723401482893,0.50316345,60283.0,60282.0,0.000913]
[1723401483089,0.50316345,60283.0,60282.0,0.004913]
[1723401483311,0.27092645,60283.0,60282.0,0.004913]
[1723401483518,0.470955,60283.0,60282.0,0.004913]
[1723401484293,0.705192,60283.0,60282.0,0.000913]
[1723401484496,0.705192,60283.0,60282.0,0.004913]
[1723401485127,0.73744094,60283.0,60282.0,0.004913]
[1723401485744,0.73745225,60283.0,60282.0,0.004913]
[1723401488113,0.50521525,60283.0,60282.0,0.004913]
[1723401488316,0.44731525,60283.0,60282.0,0.004913]
[1723401488467,0.415055,60283.0,60282.0,0.004913]
[1723401490253,0.118118,60283.0,60282.0,0.004913]
[1723401491854,0.118948,60283.0,60282.0,0.004913]
[1723401492840,0.00283,60283.0,60282.0,0.004913]
[1723401495404,0.118948,60283.0,60282.0,0.004913]
[1723401500972,0.351185,60283.0,60282.0,0.004913]
[1723401501177,0.583422,60283.0,60282.0,0.004913]
[1723401501395,0.90912157,60283.0,60282.0,0.004913]
[1723401501994,1.0082694,60283.0,60282.0,0.004913]
[1723401502201,0.90914016,60283.0,60282.0,0.004913]
[1723401502371,1.00828631,60283.0,60282.0,0.004913]
[1723401502758,0.90914016,60283.0,60282.0,0.004913]
[1723401502938,0.95872073,60283.0,60282.0,0.004913]
[1723401503539,0.876859,60283.0,60282.0,0.004913]
[1723401503818,0.90909811,60283.0,60282.0,0.004913]
[1723401504025,0.95867868,60283.0,60282.0,0.004913]
[1723401504438,0.90909811,60283.0,60282.0,0.004913]
[1723401505015,0.95867665,60283.0,60282.0,0.004913]
[1723401505174,0.95867461,60283.0,60282.0,0.004913]
[1723401507309,0.9586633,60283.0,60282.0,0.004913]
[1723401507720,0.9264355,60283.0,60282.0,0.004913]
[1723401507985,0.95865738,60283.0,60282.0,0.004913]
[1723401509400,0.90908088,60283.0,60282.0,0.004913]
[1723401509997,0.98908088,60283.0,60282.0,0.004913]
[1723401510319,1.03865738,60283.0,60282.0,0.004913]
[1723401510524,0.98908088,60283.0,60282.0,0.004913]
[1723401511001,0.956859,60283.0,60282.0,0.004913]
[1723401511241,0.98911189,60283.0,60282.0,0.004913]
[1723401511793,0.92791189,60283.0,60282.0,0.004913]
[1723401512246,0.92791189,60283.0,60282.0,0.085113]
[1723401513150,0.38343789,60283.0,60282.0,0.085113]
[1723401514474,0.61561029,60283.0,60282.0,0.085113]
[1723401515167,0.61561029,60283.0,60282.0,0.004913]
[1723401516341,0.38337329,60283.0,60282.0,0.004913]
[1723401517021,0.61561029,60283.0,60282.0,0.004913]
[1723401518410,0.6156468,60283.0,60282.0,0.004913]
[1723401520480,0.3834098,60283.0,60282.0,0.004913]
[1723401520981,0.0350548,60283.0,60282.0,0.148313]
[1723401521213,0.118948,60283.0,60282.0,0.148313]
[1723401522134,0.00283,60283.0,60282.0,0.42824792]
[1723401522385,0.00283,60283.0,60282.0,1.00169651]
[1723401523728,0.00083,60283.0,60282.0,1.00169651]
[1723401523942,0.00083,60283.0,60282.0,1.23593751]
[1723401524142,0.00083,60283.0,60282.0,1.31466765]
[1723401524622,0.00083,60283.0,60282.0,1.32366765]
[1723401525086,0.00083,60283.0,60282.0,1.31518714]
[1723401525309,0.00083,60283.0,60282.0,1.24945947]
[1723401528623,0.00083,60283.0,60282.0,1.24958288]
[1723401529056,0.00083,60283.0,60282.0,1.24960674]
[1723401532169,0.00083,60283.0,60282.0,1.24939472]
[1723401532381,0.00083,60283.0,60282.0,0.2095368]
[1723401532590,0.00083,60283.0,60282.0,0.100113]
[1723401533420,0.00083,60283.0,60282.0,0.216233]
[1723401533847,0.00083,60283.0,60282.0,0.136033]
[1723401534239,0.00083,60283.0,60282.0,0.019913]
[1723401535147,0.06673,60283.0,60282.0,0.019913]
[1723401535358,0.415085,60283.0,60282.0,0.019913]
[1723401535565,0.182848,60283.0,60282.0,0.019913]
[1723401536223,0.00083,60283.0,60282.0,0.019913]
[1723401538572,0.639322,60283.0,60282.0,0.019913]
[1723401539673,0.639322,60283.0,60282.0,0.006913]
[1723401539793,0.639322,60283.0,60282.0,0.000913]
[1723401539995,0.641322,60283.0,60282.0,0.001913]
[1723401540216,0.639322,60283.0,60282.0,0.000913]
[1723401540627,0.641322,60283.0,60282.0,0.001913]
[1723401543061,0.641322,60283.0,60282.0,0.000913]
[1723401543062,0.639322,60283.0,60282.0,0.000913]
[1723401543261,0.641322,60283.0,60282.0,0.001913]
[1723401543458,0.641322,60283.0,60282.0,0.002913]
[1723401543704,0.639322,60283.0,60282.0,0.001913]
[1723401543878,0.641322,60283.0,60282.0,0.002913]
[1723401544305,0.639322,60283.0,60282.0,0.001913]
[1723401544504,0.641322,60283.0,60282.0,0.002913]
[1723401545496,0.641322,60283.0,60282.0,0.001913]
[1723401545702,0.641322,60283.0,60282.0,0.002913]
[1723401546895,0.583422,60283.0,60282.0,0.002913]
[1723401549349,0.351185,60283.0,60282.0,0.002913]
[1723401550427,0.351185,60283.0,60282.0,0.001913]
[1723401550843,0.349185,60283.0,60282.0,0.000913]
[1723401551349,0.351185,60283.0,60282.0,0.001913]
[1723401551571,0.349185,60283.0,60282.0,0.000913]
[1723401552004,0.349185,60283.0,60282.0,0.001913]
[1723401552005,0.351185,60283.0,60282.0,0.001913]
[1723401552223,0.351185,60283.0,60282.0,0.002913]
[1723401552672,0.351185,60283.0,60282.0,0.001913]
[1723401553092,0.351185,60283.0,60282.0,0.002913]
[1723401553307,0.349185,60283.0,60282.0,0.001913]
[1723401553740,0.351185,60283.0,60282.0,0.002913]
[1723401554466,0.00083,60283.0,60282.0,0.084913]
[1723401554688,0.116948,60283.0,60282.0,0.084913]
[1723401554914,0.118948,60283.0,60282.0,0.085913]
[1723401555147,0.116948,60283.0,60282.0,0.084913]
[1723401555353,0.349185,60283.0,60282.0,0.083913]
[1723401555574,0.349185,60283.0,60282.0,0.084913]
[1723401556012,0.349185,60283.0,60282.0,0.083913]
[1723401556241,0.349185,60283.0,60282.0,0.090913]
[1723401556522,0.351185,60283.0,60282.0,0.091913]
[1723401556703,0.349185,60283.0,60282.0,0.090913]
[1723401557131,0.350185,60283.0,60282.0,0.090913]
[1723401558611,0.350185,60283.0,60282.0,0.083913]
[1723401558818,0.350185,60283.0,60282.0,0.091913]
[1723401559025,0.350185,60283.0,60282.0,0.008913]
[1723401559457,0.349185,60283.0,60282.0,0.000913]
[1723401559691,0.349185,60283.0,60282.0,0.007913]
[1723401559913,0.350185,60283.0,60282.0,0.007913]
[1723401560147,0.582422,60283.0,60282.0,0.007913]
[1723401560382,0.67244619,60283.0,60282.0,0.007913]
[1723401560600,0.61454619,60283.0,60282.0,0.007913]
[1723401561031,0.582422,60283.0,60282.0,0.007913]
[1723401561237,0.61457162,60283.0,60282.0,0.007913]
[1723401562223,0.582422,60283.0,60282.0,0.007913]
[1723401562421,0.61456349,60283.0,60282.0,0.007913]
[1723401562659,0.61456349,60283.0,60282.0,0.090913]
[1723401562876,0.38232649,60283.0,60282.0,0.090913]
[1723401563078,0.38232609,60283.0,60282.0,0.155713]
[1723401566806,0.38228597,60283.0,60282.0,0.155713]
[1723401568811,0.38228597,60283.0,60282.0,0.090913]
[1723401570878,0.350185,60283.0,60282.0,0.090913]
[1723401571095,0.38228418,60283.0,60282.0,0.090913]
[1723401573986,0.350185,60283.0,60282.0,0.090913]
[1723401574197,0.38227001,60283.0,60282.0,0.090913]
[1723401576262,0.76265347,60283.0,60282.0,0.007913]
[1723401576472,0.81222338,60283.0,60282.0,0.007913]
[1723401576904,0.75516187,60283.0,60282.0,0.007913]
[1723401577313,0.75521992,60283.0,60282.0,0.007913]
[1723401577519,0.68081627,60283.0,60282.0,0.007913]
[1723401578552,1.01227048,60283.0,60282.0,0.007913]
[1723401578773,1.03707478,60283.0,60282.0,0.007913]
[1723401579617,0.91305327,60283.0,60282.0,0.007913]
[1723401579821,1.01019019,60283.0,60282.0,0.007913]
[1723401580032,1.17400511,60283.0,60282.0,0.007913]
[1723401580239,1.3195209,60283.0,60282.0,0.007913]
[1723401580438,1.23190511,60283.0,60282.0,0.007913]
[1723401580644,1.23090511,60283.0,60282.0,0.000913]
[1723401581102,1.23260365,60283.0,60282.0,0.005913]
[1723401581326,1.23060365,60283.0,60282.0,0.005913]
[1723401581541,1.19852812,60283.0,60282.0,0.000913]
[1723401581747,1.19852812,60283.0,60282.0,0.001913]
[1723401581748,1.24246184,60283.0,60282.0,0.001913]
[1723401581977,1.24246184,60283.0,60282.0,0.002913]
[1723401582401,1.24246184,60283.0,60282.0,0.001913]
[1723401582831,1.24246084,60283.0,60282.0,0.001913]
[1723401583238,1.24046084,60283.0,60282.0,0.000913]
[1723401583442,1.24446084,60283.0,60282.0,0.001913]
[1723401584762,1.24451012,60283.0,60282.0,0.001913]
[1723401586159,1.62974712,60283.0,60282.0,0.001913]
[1723401586364,1.60974712,60283.0,60282.0,0.001913]
[1723401586572,1.80875473,60283.0,60282.0,0.001913]
[1723401586790,2.36127943,60283.0,60282.0,0.001913]
[1723401587193,2.20845361,60283.0,60282.0,0.000913]
[1723401587402,1.80767064,60283.0,60282.0,0.001913]
[1723401587844,1.80467064,60283.0,60282.0,0.000913]
[1723401588061,1.80867064,60283.0,60282.0,0.002913]
[1723401588330,1.80844768,60283.0,60282.0,0.002913]
[1723401588494,1.80744768,60283.0,60282.0,0.001913]
[1723401588934,1.82844768,60283.0,60282.0,0.002913]
[1723401589461,1.67970595,60283.0,60282.0,0.002913]
[1723401589640,1.65970595,60283.0,60282.0,0.002913]
[1723401590483,1.65967357,60283.0,60282.0,0.002913]
[1723401590689,1.65967359,60283.0,60282.0,0.002913]
[1723401591303,1.6095659,60283.0,60282.0,0.002913]
[1723401591510,1.5995659,60283.0,60282.0,0.002913]
[1723401591719,1.59968187,60283.0,60282.0,0.002913]
[1723401592126,1.50176913,60283.0,60282.0,0.001913]
[1723401592420,1.59968192,60283.0,60282.0,0.002913]
[1723401592814,1.59668192,60283.0,60282.0,0.001913]
[1723401593027,1.60668192,60283.0,60282.0,0.002913]
[1723401593435,1.59668192,60283.0,60282.0,0.001913]
[1723401593606,1.60568192,60283.0,60282.0,0.001913]
[1723401593813,1.59568192,60283.0,60282.0,0.000913]
[1723401594373,1.60568192,60283.0,60282.0,0.001913]
[1723401594614,1.59668192,60283.0,60282.0,0.001913]
[1723401595227,1.59568192,60283.0,60282.0,0.000913]
[1723401595437,1.59671821,60283.0,60282.0,0.001913]
[1723401596498,1.60671821,60283.0,60282.0,0.002913]
[1723401596700,1.60671821,60283.0,60282.0,0.001913]
[1723401596880,1.59671821,60283.0,60282.0,0.001913]
[1723401597088,1.60671821,60283.0,60282.0,0.002913]
[1723401597487,1.60571821,60283.0,60282.0,0.000913]
[1723401597693,1.61671821,60283.0,60282.0,0.002913]
[1723401597900,1.59671821,60283.0,60282.0,0.001913]
[1723401598119,1.59671821,60283.0,60282.0,0.000913]
[1723401598325,1.60571821,60283.0,60282.0,0.001913]
[1723401598527,1.60671821,60283.0,60282.0,0.002913]
[1723401598962,1.60668316,60283.0,60282.0,0.002913]
[1723401599633,1.59668316,60283.0,60282.0,0.001913]
[1723401599837,1.60568316,60283.0,60282.0,0.001913]
[1723401600048,1.61668316,60283.0,60282.0,0.002913]
[1723401600258,1.60668316,60283.0,60282.0,0.001913]
[1723401600435,1.61568316,60283.0,60282.0,0.001913]
[1723401600849,2.00344936,60283.0,60282.0,0.001913]
[1723401601064,0.0652,60268.0,60266.0,0.000913]
[1723401601262,0.46045276,60267.0,60266.0,0.000913]
[1723401601464,0.46045276,60267.0,60266.0,0.140213]
[1723401601465,0.61275176,60267.0,60266.0,0.140213]
[1723401601640,0.46045276,60267.0,60266.0,0.140213]
[1723401602203,0.46045305,60267.0,60266.0,0.140213]
[1723401602749,0.69275205,60267.0,60266.0,0.140213]
[1723401603130,0.46045305,60267.0,60266.0,0.140213]
[1723401603339,0.46043669,60267.0,60266.0,0.145213]
[1723401603788,0.46043669,60267.0,60266.0,0.140213]
[1723401603996,0.46243669,60267.0,60266.0,0.140213]
[1723401604202,0.46243669,60267.0,60266.0,0.146213]
[1723401604670,0.46043669,60267.0,60266.0,0.146213]
[1723401604893,0.46343669,60267.0,60266.0,0.140213]
[1723401605744,0.69573569,60267.0,60266.0,0.140213]
[1723401606148,0.46043669,60267.0,60266.0,0.145213]
[1723401606357,0.69273569,60267.0,60266.0,0.145213]
[1723401606566,0.69773569,60267.0,60266.0,0.140213]
[1723401606767,0.69273569,60267.0,60266.0,0.140213]
[1723401606970,0.69773569,60267.0,60266.0,0.143213]
[1723401607627,0.69769257,60267.0,60266.0,0.143213]
[1723401608670,0.69769625,60267.0,60266.0,0.143213]